bitfinex/quotes_BTCUSD_20241018
["timestamp","ask_amount","ask_price","bid_price","bid_amount"]
[1729236013130,0.002828,68110.0,68105.0,0.00771429]
[1729236013572,0.000828,68110.0,68106.0,0.00770542]
[1729236013785,0.002,68109.0,68106.0,0.00770542]
[1729236014229,0.000828,68110.0,68106.0,0.00770542]
[1729236014673,0.003,68109.0,68106.0,0.00770542]
[1729236014891,0.003,68109.0,68108.0,0.146825]
[1729236015117,0.000828,68110.0,68106.0,0.15453442]
[1729236015339,0.000828,68110.0,68108.0,0.00768806]
[1729236015527,0.000828,68110.0,68107.0,0.00769693]
[1729236015798,0.000828,68110.0,68109.0,0.00767918]
[1729236016016,0.000828,68110.0,68108.0,0.00768805]
[1729236016251,0.000828,68110.0,68109.0,0.00767918]
[1729236016685,0.000828,68110.0,68106.0,0.147829]
[1729236016901,0.000828,68110.0,68109.0,0.00767918]
[1729236017119,0.000828,68110.0,68106.0,0.147829]
[1729236017343,0.000828,68110.0,68109.0,0.00767836]
[1729236017580,0.000828,68110.0,68108.0,0.002]
[1729236017804,0.000828,68110.0,68109.0,0.00767836]
[1729236018502,0.000828,68110.0,68106.0,0.149829]
[1729236018703,0.000828,68110.0,68109.0,0.00767824]
[1729236018987,0.000828,68110.0,68108.0,0.001]
[1729236019217,0.000828,68110.0,68109.0,0.00767824]
[1729236019656,0.000828,68110.0,68106.0,0.148829]
[1729236019884,0.146824,68109.0,68104.0,0.146832]
[1729236020128,0.293652,68108.0,68101.0,0.01232497]
[1729236020354,0.02961325,68109.0,68097.0,0.01232685]
[1729236020355,0.146847,68098.0,68097.0,0.01232685]
[1729236020598,0.146853,68095.0,68094.0,0.01232685]
[1729236020826,0.146855,68094.0,68093.0,0.21942817]
[1729236021045,0.146867,68089.0,68086.0,0.21942817]
[1729236021273,0.293727,68091.0,68086.0,0.21942817]
[1729236021498,0.293727,68091.0,68085.0,0.146875]
[1729236021499,0.146864,68090.0,68085.0,0.146875]
[1729236021950,0.14686,68092.0,68087.0,0.14687]
[1729236022181,0.14686,68092.0,68085.0,0.29375]
[1729236022182,0.293711,68094.0,68085.0,0.29375]
[1729236022438,0.146862,68091.0,68085.0,0.29375]
[1729236022680,0.152862,68091.0,68087.0,0.14687]
[1729236023351,0.006,68091.0,68087.0,0.14687]
[1729236023590,0.004,68090.0,68087.0,0.14687]
[1729236024039,0.006,68091.0,68087.0,0.14687]
[1729236024514,0.005,68091.0,68087.0,0.14687]
[1729236024738,0.005,68091.0,68090.0,0.146864]
[1729236024972,0.007,68092.0,68087.0,0.001]
[1729236024973,0.007,68092.0,68091.0,0.146862]
[1729236025197,0.21942817,68096.0,68089.0,0.16580186]
[1729236025426,0.21942817,68096.0,68090.0,0.146864]
[1729236025427,0.006,68091.0,68090.0,0.146864]
[1729236025633,0.21942817,68096.0,68089.0,0.146865]
[1729236025634,0.004,68090.0,68089.0,0.146865]
[1729236025890,0.004,68090.0,68086.0,0.293746]
[1729236025891,0.004,68090.0,68086.0,0.30610617]
[1729236026128,0.004,68090.0,68089.0,0.146866]
[1729236026824,0.004,68090.0,68089.0,0.00993803]
[1729236027048,0.006,68091.0,68089.0,0.15680303]
[1729236027502,0.146858,68093.0,68089.0,0.15680303]
[1729236028215,0.001,68090.0,68089.0,0.16916718]
[1729236028454,0.001,68090.0,68089.0,0.16917017]
[1729236028684,0.005,68091.0,68089.0,0.16917017]
[1729236028921,0.005,68091.0,68089.0,0.15680303]
[1729236029156,0.005,68091.0,68090.0,0.01236709]
[1729236029390,0.005,68091.0,68090.0,0.01236956]
[1729236029869,0.005,68091.0,68090.0,0.00994204]
[1729236030118,0.146858,68093.0,68090.0,0.00994204]
[1729236030609,0.001,68091.0,68090.0,0.00994204]
[1729236030834,0.146858,68093.0,68090.0,0.00994204]
[1729236031294,0.150858,68093.0,68090.0,0.00994204]
[1729236031625,0.001,68091.0,68090.0,0.00994204]
[1729236031818,0.001,68091.0,68090.0,0.01314345]
[1729236032072,0.002,68091.0,68090.0,0.16000745]
[1729236032300,0.293681,68101.0,68090.0,0.30687045]
[1729236032529,0.146853,68096.0,68091.0,0.14686]
[1729236032759,0.146853,68095.0,68091.0,0.14686]
[1729236032999,0.146853,68095.0,68092.0,0.01313472]
[1729236033000,0.004,68093.0,68092.0,0.01313472]
[1729236033234,0.150857,68093.0,68089.0,0.01237027]
[1729236033480,0.153858,68093.0,68088.0,0.146867]
[1729236033702,0.153858,68093.0,68089.0,0.0123701]
[1729236033921,0.150858,68093.0,68088.0,0.146867]
[1729236034146,0.146858,68093.0,68089.0,0.146866]
[1729236034420,0.146866,68090.0,68088.0,0.01236965]
[1729236034648,0.21942817,68096.0,68084.0,0.001656]
[1729236034878,0.21942817,68096.0,68086.0,0.146871]
[1729236034879,0.146862,68091.0,68086.0,0.146871]
[1729236035106,0.146862,68091.0,68090.0,0.002]
[1729236035336,0.146862,68091.0,68085.0,0.01236956]
[1729236035559,0.146862,68091.0,68084.0,0.001656]
[1729236035560,0.146862,68091.0,68086.0,0.15924156]
[1729236035779,0.001,68090.0,68086.0,0.146872]
[1729236036002,0.146862,68091.0,68086.0,0.146872]
[1729236036225,0.14686,68092.0,68087.0,0.146869]
[1729236036443,0.14686,68092.0,68084.0,0.001656]
[1729236036444,0.146868,68089.0,68085.0,0.01236951]
[1729236036669,0.0941,68091.0,68085.0,0.21942817]
[1729236036908,0.003,68093.0,68091.0,0.146861]
[1729236037132,0.146852,68096.0,68088.0,0.16580186]
[1729236037133,0.21942817,68095.0,68092.0,0.14686]
[1729236037346,4e-05,68093.0,68092.0,0.14686]
[1729236037782,4e-05,68093.0,68090.0,0.146862]
[1729236038004,0.001,68091.0,68090.0,0.146862]
[1729236038509,4e-05,68093.0,68090.0,0.146862]
[1729236038724,0.00404,68093.0,68090.0,0.146862]
[1729236038936,4e-05,68093.0,68090.0,0.146862]
[1729236039155,0.00104,68093.0,68090.0,0.148862]
[1729236039423,0.001,68091.0,68090.0,0.159862]
[1729236039649,0.001,68091.0,68090.0,0.013]
[1729236039876,0.229162,68091.0,68090.0,0.013]
[1729236040528,0.3201277,68091.0,68090.0,0.011]
[1729236040754,0.146875,68085.0,68084.0,0.001656]
[1729236041198,0.146875,68085.0,68084.0,0.01486051]
[1729236041842,0.146875,68085.0,68084.0,0.001656]
[1729236042355,0.147875,68085.0,68084.0,0.011656]
[1729236042583,0.146875,68085.0,68084.0,0.001656]
[1729236043947,0.151875,68085.0,68084.0,0.001656]
[1729236044862,0.155875,68085.0,68084.0,0.001656]
[1729236045342,0.151875,68085.0,68084.0,0.001656]
[1729236045573,0.155875,68085.0,68084.0,0.001656]
[1729236045788,0.150875,68085.0,68084.0,0.001656]
[1729236046262,0.146875,68085.0,68084.0,0.001656]
[1729236047159,0.37126905,68085.0,68084.0,0.001656]
[1729236047364,0.54666905,68085.0,68084.0,0.001656]
[1729236047584,0.47323415,68085.0,68084.0,0.001656]
[1729236047835,0.47823415,68085.0,68084.0,0.001656]
[1729236048079,0.47623415,68085.0,68084.0,0.001656]
[1729236048285,0.57823415,68085.0,68084.0,0.001656]
[1729236048512,0.57623415,68085.0,68084.0,0.001656]
[1729236048738,0.72262284,68085.0,68084.0,0.001656]
[1729236048981,0.74862284,68085.0,68084.0,0.002656]
[1729236049261,0.74862284,68085.0,68080.0,0.001656]
[1729236049262,0.431877,68084.0,68080.0,0.001656]
[1729236049524,0.017,68081.0,68080.0,0.001656]
[1729236049813,0.94124587,68081.0,68080.0,0.001656]
[1729236050054,1.25160948,68081.0,68080.0,0.001656]
[1729236050309,1.3828617,68081.0,68080.0,0.001656]
[1729236050545,0.163888,68079.0,68078.0,0.001654]
[1729236050780,0.76495161,68079.0,68078.0,0.001654]
[1729236051726,0.77895161,68079.0,68078.0,0.002654]
[1729236052014,0.77895161,68079.0,68078.0,0.001654]
[1729236052404,0.92791076,68079.0,68078.0,0.001654]
[1729236052628,0.91391076,68079.0,68078.0,0.001654]
[1729236053085,0.92791076,68079.0,68078.0,0.001654]
[1729236053320,1.03698667,68079.0,68078.0,0.001654]
[1729236054064,1.05098667,68079.0,68078.0,0.002654]
[1729236054315,0.94191076,68079.0,68078.0,0.002654]
[1729236054542,0.92791076,68079.0,68078.0,0.001654]
[1729236055001,0.92750134,68079.0,68078.0,0.001654]
[1729236055236,0.94150134,68079.0,68078.0,0.001654]
[1729236055472,1.02870158,68079.0,68078.0,0.001654]
[1729236055714,1.01470158,68079.0,68078.0,0.001654]
[1729236056171,1.02870158,68079.0,68078.0,0.001654]
[1729236056401,0.94150134,68079.0,68078.0,0.001654]
[1729236057322,0.84588482,68079.0,68078.0,0.001654]
[1729236057651,0.85761208,68079.0,68078.0,0.001654]
[1729236059469,0.79223356,68079.0,68078.0,0.001654]
[1729236059687,0.79223356,68079.0,68073.0,0.00141834]
[1729236059688,0.015,68074.0,68073.0,0.00141834]
[1729236060028,0.57665901,68074.0,68073.0,0.00141834]
[1729236060168,0.72561816,68074.0,68073.0,0.01478352]
[1729236060416,0.74235901,68074.0,68073.0,0.00141834]
[1729236060635,0.76535901,68074.0,68073.0,0.00141834]
[1729236061363,0.77935901,68074.0,68073.0,0.00141834]
[1729236061612,0.76535901,68074.0,68073.0,0.00141834]
[1729236061851,0.77935901,68074.0,68073.0,0.00141834]
[1729236062322,0.76535901,68074.0,68073.0,0.00141834]
[1729236062780,0.92831816,68074.0,68073.0,0.00141834]
[1729236063242,0.77935901,68074.0,68073.0,0.00141834]
[1729236063486,0.78135901,68074.0,68073.0,0.00141834]
[1729236063979,0.79535901,68074.0,68073.0,0.00141834]
[1729236064220,0.79335901,68074.0,68073.0,0.00141834]
[1729236064432,0.79535901,68074.0,68073.0,0.00141834]
[1729236064673,0.79618701,68074.0,68073.0,0.00141834]
[1729236064930,0.79418701,68074.0,68073.0,0.00141834]
[1729236065164,0.84801141,68074.0,68073.0,0.00141834]
[1729236066084,0.85001141,68074.0,68073.0,0.00141834]
[1729236066795,0.85001141,68074.0,68047.0,0.14861]
[1729236066796,0.246931,68059.0,68047.0,0.001654]
[1729236067037,0.40089015,68059.0,68047.0,0.001654]
[1729236067275,0.40089015,68059.0,68058.0,0.01178016]
[1729236067512,0.40089015,68059.0,68058.0,0.001654]
[1729236068654,0.41489015,68059.0,68058.0,0.001654]
[1729236068883,0.000828,68074.0,68072.0,0.0759]
[1729236069136,0.000828,68074.0,68073.0,0.146901]
[1729236069383,0.000828,68074.0,68073.0,0.15783086]
[1729236069384,0.014828,68074.0,68073.0,0.15783086]
[1729236069845,0.000828,68074.0,68073.0,0.15783086]
[1729236071259,0.000828,68074.0,68073.0,0.15812386]
[1729236071782,0.000828,68074.0,68073.0,0.16412386]
[1729236072004,0.000828,68074.0,68073.0,0.15912386]
[1729236072225,0.000828,68074.0,68073.0,0.15812386]
[1729236072465,0.001828,68074.0,68073.0,0.17112386]
[1729236072697,0.001828,68074.0,68073.0,0.16012386]
[1729236072951,0.002828,68074.0,68073.0,0.17312386]
[1729236073228,0.001828,68074.0,68073.0,0.17112386]
[1729236073728,0.001828,68074.0,68073.0,0.32302075]
[1729236073955,0.001828,68074.0,68073.0,0.4267225]
[1729236074660,0.002828,68074.0,68073.0,0.4277225]
[1729236074896,0.001828,68074.0,68073.0,0.4147225]
[1729236075135,0.000828,68074.0,68073.0,0.4277225]
[1729236075602,0.001828,68074.0,68073.0,0.4337225]
[1729236075832,0.001828,68074.0,68073.0,0.4437225]
[1729236076321,0.001828,68074.0,68073.0,0.4457225]
[1729236076799,0.001828,68074.0,68073.0,0.4453785]
[1729236079823,0.001828,68074.0,68073.0,0.4473785]
[1729236080519,0.001828,68074.0,68073.0,0.43503901]
[1729236083091,0.001828,68074.0,68073.0,0.61318036]
[1729236083364,0.001828,68074.0,68073.0,0.4473785]
[1729236083819,0.001828,68074.0,68073.0,0.71498036]
[1729236085009,0.001828,68074.0,68073.0,0.70096213]
[1729236085224,0.001828,68074.0,68073.0,0.71396213]
[1729236085903,0.001828,68074.0,68073.0,0.54616027]
[1729236086125,0.000828,68074.0,68073.0,0.49683901]
[1729236086572,0.001828,68074.0,68073.0,0.51083901]
[1729236086802,0.000828,68074.0,68073.0,0.51083901]
[1729236087514,0.000828,68074.0,68073.0,0.49583901]
[1729236087737,0.000828,68074.0,68073.0,0.41653901]
[1729236088373,0.001828,68074.0,68073.0,0.41653901]
[1729236088825,0.002828,68074.0,68073.0,0.43053901]
[1729236089048,0.001828,68074.0,68073.0,0.41653901]
[1729236089267,0.000828,68074.0,68073.0,0.40253901]
[1729236089481,0.000828,68074.0,68073.0,0.41486027]
[1729236089706,0.002828,68074.0,68073.0,0.43053901]
[1729236089962,0.002828,68074.0,68073.0,0.44286027]
[1729236090182,0.000828,68074.0,68073.0,0.41686027]
[1729236090397,0.000828,68074.0,68073.0,0.40253901]
[1729236091057,0.000828,68074.0,68073.0,0.60366213]
[1729236091298,0.000828,68074.0,68073.0,0.59334087]
[1729236091515,0.000828,68074.0,68073.0,0.61966213]
[1729236091738,0.002828,68074.0,68073.0,0.46786027]
[1729236091969,0.001828,68074.0,68073.0,0.45386027]
[1729236092191,0.000828,68074.0,68073.0,0.43986027]
[1729236092409,0.002828,68074.0,68073.0,0.46786027]
[1729236092652,0.001828,68074.0,68073.0,0.45386027]
[1729236092870,0.000828,68074.0,68073.0,0.43986027]
[1729236093087,0.001828,68074.0,68073.0,0.45386027]
[1729236093304,0.001868,68074.0,68073.0,0.45386027]
[1729236093517,0.002868,68074.0,68073.0,0.46786027]
[1729236093733,0.002868,68074.0,68073.0,0.64499347]
[1729236094276,0.002868,68074.0,68073.0,0.46687035]
[1729236094432,0.002868,68074.0,68073.0,0.47920579]
[1729236094851,0.000868,68074.0,68073.0,0.45120579]
[1729236095061,0.000868,68074.0,68073.0,0.46520579]
[1729236095294,0.002868,68074.0,68073.0,0.64500765]
[1729236095514,0.001868,68074.0,68073.0,0.46520579]
[1729236095733,0.000868,68074.0,68073.0,0.45120579]
[1729236095939,0.002868,68074.0,68073.0,0.47920579]
[1729236096156,0.001868,68074.0,68073.0,0.46520579]
[1729236096370,0.001868,68074.0,68073.0,0.63100765]
[1729236098006,0.001868,68074.0,68073.0,0.46520579]
[1729236098253,0.001868,68074.0,68073.0,0.6310428]
[1729236098457,0.001868,68074.0,68073.0,0.6450428]
[1729236098458,0.002868,68074.0,68073.0,0.6450428]
[1729236098710,0.000868,68074.0,68073.0,0.45124094]
[1729236098944,0.001868,68074.0,68073.0,0.46524094]
[1729236099200,0.002868,68074.0,68073.0,0.47924094]
[1729236099445,0.001868,68074.0,68073.0,0.46524094]
[1729236100152,0.002868,68074.0,68073.0,0.47924094]
[1729236100377,0.002868,68074.0,68073.0,0.6430428]
[1729236100613,0.002868,68074.0,68073.0,0.47724094]
[1729236101551,0.002868,68074.0,68073.0,0.4659096]
[1729236101830,0.002868,68074.0,68073.0,0.4679096]
[1729236103453,0.002868,68074.0,68073.0,0.51373572]
[1729236104137,0.002868,68074.0,68073.0,0.51173572]
[1729236105506,0.002868,68074.0,68073.0,0.56073758]
[1729236106159,0.002868,68074.0,68073.0,0.55336699]
[1729236106280,0.001868,68074.0,68073.0,0.55177672]
[1729236106506,0.001868,68074.0,68073.0,0.5059506]
[1729236106726,0.001868,68074.0,68073.0,0.5109506]
[1729236106939,0.001868,68074.0,68073.0,0.72762259]
[1729236107384,0.00016,68079.0,68078.0,0.49549372]
[1729236107600,0.00016,68079.0,68078.0,0.70273273]
[1729236107837,0.00016,68079.0,68078.0,0.71551069]
[1729236108362,0.000828,68086.0,68084.0,0.40947886]
[1729236108578,0.000828,68086.0,68085.0,0.163875]
[1729236108792,0.000828,68086.0,68085.0,0.49221401]
[1729236109023,0.000828,68086.0,68085.0,0.50492912]
[1729236109463,0.000828,68086.0,68085.0,0.50292912]
[1729236109769,0.000828,68086.0,68085.0,0.49051939]
[1729236109913,0.001828,68086.0,68085.0,0.51692056]
[1729236110551,0.002828,68086.0,68085.0,0.53092056]
[1729236111200,0.002828,68086.0,68085.0,0.51692056]
[1729236111201,0.001828,68086.0,68085.0,0.51692056]
[1729236111669,0.001828,68086.0,68085.0,0.53092056]
[1729236111886,0.000828,68086.0,68085.0,0.50292056]
[1729236112343,0.000828,68086.0,68085.0,0.51692056]
[1729236113234,0.000828,68086.0,68085.0,0.53092056]
[1729236113693,0.000828,68086.0,68085.0,0.53091193]
[1729236113930,0.000828,68086.0,68085.0,0.52827989]
[1729236114144,0.000828,68086.0,68085.0,0.51691193]
[1729236114402,0.000828,68086.0,68085.0,0.41881193]
[1729236114884,0.000828,68086.0,68085.0,0.39581193]
[1729236115353,0.000828,68086.0,68085.0,0.40481193]
[1729236115593,0.000828,68086.0,68085.0,0.3589418]
[1729236116299,0.000828,68086.0,68085.0,0.3639418]
[1729236117721,0.000828,68086.0,68085.0,0.40977804]
[1729236117963,0.000828,68086.0,68085.0,0.39977804]
[1729236118451,0.000828,68086.0,68085.0,0.40477804]
[1729236118680,0.000828,68086.0,68085.0,0.40977804]
[1729236121023,0.000828,68086.0,68085.0,0.39577466]
[1729236121500,0.000828,68086.0,68085.0,0.40977466]
[1729236121977,0.000828,68086.0,68085.0,0.41177466]
[1729236122217,0.000828,68086.0,68085.0,0.40977466]
[1729236122454,0.000828,68086.0,68085.0,0.39577466]
[1729236123136,0.000828,68086.0,68085.0,0.40977466]
[1729236124500,0.000828,68086.0,68085.0,0.40977302]
[1729236125617,0.000828,68086.0,68085.0,0.39577302]
[1729236125838,0.000828,68086.0,68085.0,0.41177302]
[1729236126269,0.000828,68086.0,68085.0,0.4557671]
[1729236126491,0.000828,68086.0,68085.0,0.39777302]
[1729236126915,0.000828,68086.0,68085.0,0.41177302]
[1729236127556,0.000678,68086.0,68085.0,0.41177302]
[1729236127793,0.000678,68086.0,68085.0,0.40977302]
[1729236128015,0.000678,68086.0,68085.0,0.39577283]
[1729236128229,0.000678,68086.0,68085.0,0.40977283]
[1729236128659,0.000678,68086.0,68085.0,0.39577283]
[1729236128926,0.000678,68086.0,68085.0,0.38177283]
[1729236129151,0.000678,68086.0,68085.0,0.39577283]
[1729236129371,0.000678,68086.0,68085.0,0.41177283]
[1729236129814,0.000678,68086.0,68085.0,0.39777283]
[1729236131158,0.000678,68086.0,68085.0,0.41177283]
[1729236131375,0.000678,68086.0,68085.0,0.42077283]
[1729236131589,0.000678,68086.0,68085.0,0.40677283]
[1729236131827,0.000678,68086.0,68085.0,0.4083855]
[1729236132038,0.000678,68086.0,68085.0,0.64917389]
[1729236132269,0.000678,68086.0,68085.0,0.66317389]
[1729236132722,0.000678,68086.0,68085.0,0.64917389]
[1729236133142,0.000678,68086.0,68085.0,0.66317389]
[1729236133358,0.000678,68086.0,68085.0,0.64917389]
[1729236133574,0.000678,68086.0,68085.0,0.66317389]
[1729236134283,0.000678,68086.0,68085.0,0.64917389]
[1729236134759,0.000868,68093.0,68092.0,0.16186]
[1729236135017,0.000868,68093.0,68092.0,0.62338051]
[1729236135260,0.000868,68093.0,68092.0,0.67589011]
[1729236135521,0.000868,68093.0,68092.0,0.62268012]
[1729236135761,0.000868,68093.0,68092.0,0.67903652]
[1729236136005,0.000868,68093.0,68092.0,0.63507185]
[1729236136221,0.000868,68093.0,68092.0,0.64907185]
[1729236136469,0.000868,68093.0,68092.0,0.69302965]
[1729236136708,0.000868,68093.0,68092.0,0.67902965]
[1729236137199,0.000868,68093.0,68092.0,0.63507185]
[1729236137670,0.000868,68093.0,68092.0,0.64907185]
[1729236137901,0.000868,68093.0,68092.0,0.74888501]
[1729236138125,0.000868,68093.0,68092.0,0.75203455]
[1729236138364,0.000868,68093.0,68092.0,0.76603455]
[1729236139359,0.000868,68093.0,68092.0,0.59834769]
[1729236139638,0.000868,68093.0,68092.0,0.61011183]
[1729236146574,0.000868,68093.0,68092.0,0.61211183]
[1729236152153,0.000868,68093.0,68092.0,0.77779869]
[1729236152611,0.000868,68093.0,68092.0,0.60895812]
[1729236152829,0.000868,68093.0,68092.0,0.6121113]
[1729236154371,0.000868,68093.0,68092.0,0.6561091]
[1729236154718,0.000868,68093.0,68092.0,0.45366115]
[1729236154782,0.000868,68093.0,68092.0,0.56295543]
[1729236155035,0.000868,68093.0,68092.0,0.52951713]
[1729236159452,0.000868,68093.0,68092.0,0.57537372]
[1729236159880,0.000868,68093.0,68092.0,0.6610434]
[1729236160318,0.000868,68093.0,68092.0,0.7050412]
[1729236160745,0.000868,68093.0,68092.0,0.7070412]
[1729236161883,0.000868,68093.0,68092.0,0.7050412]
[1729236162348,0.000868,68093.0,68092.0,0.72705063]
[1729236162658,0.000868,68093.0,68092.0,0.6610434]
[1729236162797,0.000868,68093.0,68092.0,0.79338112]
[1729236163253,0.000868,68093.0,68092.0,0.88337672]
[1729236163471,0.000868,68093.0,68092.0,0.79538112]
[1729236163920,0.000868,68093.0,68092.0,0.88337672]
[1729236164596,0.000868,68093.0,68092.0,0.96027672]
[1729236164839,0.000868,68093.0,68092.0,0.80595693]
[1729236165305,0.000828,68110.0,68109.0,0.146823]
[1729236165548,0.000828,68110.0,68109.0,0.28900127]
[1729236165774,0.000828,68110.0,68109.0,0.47356285]
[1729236166013,0.000828,68110.0,68109.0,0.47062694]
[1729236166256,0.21942817,68118.0,68117.0,0.37516254]
[1729236166743,0.09,68121.0,68117.0,0.37516254]
[1729236166744,0.09,68121.0,68120.0,0.146799]
[1729236166966,0.09,68121.0,68120.0,0.40993642]
[1729236167190,0.09,68121.0,68120.0,0.41945695]
[1729236167888,0.09,68121.0,68120.0,0.47088236]
[1729236168336,0.076,68125.0,68124.0,0.146791]
[1729236168566,0.076,68125.0,68124.0,0.46135383]
[1729236168800,0.076,68125.0,68124.0,0.47084037]
[1729236169046,0.0961,68132.0,68131.0,0.146776]
[1729236169272,0.0961,68132.0,68131.0,0.31237968]
[1729236169707,0.0961,68132.0,68131.0,0.32181696]
[1729236170886,0.096928,68132.0,68131.0,0.32181696]
[1729236171585,0.096928,68132.0,68131.0,0.33581696]
[1729236171829,0.096928,68132.0,68131.0,0.48477611]
[1729236172071,0.000828,68132.0,68131.0,0.49877611]
[1729236172337,0.000828,68132.0,68131.0,0.48477611]
[1729236172769,0.000828,68132.0,68131.0,0.53677611]
[1729236172986,0.000828,68132.0,68131.0,0.52277611]
[1729236173437,0.000828,68132.0,68131.0,0.53677611]
[1729236173658,0.000828,68132.0,68131.0,0.52277611]
[1729236174150,0.000828,68132.0,68131.0,0.53677611]
[1729236174429,0.000828,68132.0,68131.0,0.50877611]
[1729236174621,0.000828,68132.0,68131.0,0.516113]
[1729236175061,0.000828,68132.0,68131.0,0.502113]
[1729236175500,0.000828,68132.0,68131.0,0.516113]
[1729236175923,0.000828,68132.0,68131.0,0.511113]
[1729236176597,0.000868,68132.0,68131.0,0.511113]
[1729236176837,0.000868,68132.0,68131.0,0.49877611]
[1729236177244,0.000868,68132.0,68131.0,0.50377611]
[1729236177457,0.000868,68132.0,68131.0,0.49877611]
[1729236177720,0.000868,68132.0,68131.0,0.50377611]
[1729236178609,0.000868,68132.0,68131.0,0.49877611]
[1729236178823,0.000868,68132.0,68131.0,0.50377611]
[1729236180563,0.000868,68132.0,68131.0,0.49877611]
[1729236180772,0.000868,68132.0,68131.0,0.50377611]
[1729236181949,0.21942817,68146.0,68131.0,0.50377611]
[1729236181950,0.21942817,68153.0,68142.0,0.184752]
[1729236182193,0.21942817,68153.0,68152.0,0.15173]
[1729236182418,0.000828,68154.0,68152.0,0.15173]
[1729236182419,0.000828,68154.0,68153.0,0.184728]
[1729236182649,0.000828,68154.0,68153.0,0.33662113]
[1729236182871,0.000828,68154.0,68153.0,0.35841068]
[1729236183748,0.000828,68154.0,68153.0,0.37241068]
[1729236184180,0.000828,68154.0,68153.0,0.37005722]
[1729236184410,0.000828,68154.0,68153.0,0.38405722]
[1729236184861,0.000828,68154.0,68153.0,0.39805722]
[1729236185093,0.000828,68154.0,68153.0,0.37441068]
[1729236185366,0.000828,68154.0,68153.0,0.36141068]
[1729236186045,0.000828,68154.0,68153.0,0.35141068]
[1729236186259,0.000828,68154.0,68153.0,0.34241068]
[1729236186546,0.000828,68154.0,68153.0,0.33341068]
[1729236186677,0.000828,68154.0,68153.0,0.34741068]
[1729236186927,0.000828,68154.0,68153.0,0.36141068]
[1729236187786,0.000828,68154.0,68153.0,0.35641068]
[1729236187998,0.000828,68154.0,68153.0,0.35141068]
[1729236190244,0.000828,68154.0,68153.0,0.34641068]
[1729236190494,0.000828,68154.0,68153.0,0.35141068]
[1729236191312,0.178228,68154.0,68153.0,0.34641068]
[1729236191748,0.178228,68154.0,68153.0,0.51545063]
[1729236191955,0.000828,68154.0,68153.0,0.51545063]
[1729236192386,0.000828,68154.0,68153.0,0.53511996]
[1729236192605,0.000828,68154.0,68153.0,0.52111996]
[1729236192827,0.000828,68154.0,68153.0,0.50711996]
[1729236193026,0.000828,68154.0,68153.0,0.52111996]
[1729236193286,0.000828,68154.0,68153.0,0.53511996]
[1729236193512,0.000868,68154.0,68153.0,0.53511996]
[1729236193700,0.000868,68154.0,68153.0,0.52111996]
[1729236194377,0.000868,68154.0,68153.0,0.52116485]
[1729236194664,0.000868,68154.0,68153.0,0.53516485]
[1729236195781,0.000868,68154.0,68153.0,0.52116485]
[1729236196245,0.000868,68154.0,68153.0,0.53516485]
[1729236198313,0.000868,68154.0,68153.0,0.53521406]
[1729236199989,0.00033622,68156.0,68155.0,0.146724]
[1729236200192,0.00033622,68156.0,68155.0,0.32776349]
[1729236200395,0.00033622,68156.0,68155.0,0.33936332]
[1729236201275,0.00033622,68156.0,68155.0,0.35336332]
[1729236201924,0.00033622,68156.0,68155.0,0.33362151]
[1729236202132,0.00033622,68156.0,68155.0,0.51898169]
[1729236202341,0.00033622,68156.0,68155.0,0.53298169]
[1729236202561,0.00033622,68156.0,68155.0,0.55355592]
[1729236205430,0.00033622,68156.0,68155.0,0.93858777]
[1729236205691,0.00033622,68156.0,68155.0,0.69858537]
[1729236206871,0.00033622,68156.0,68155.0,0.73658537]
[1729236207317,0.000828,68160.0,68159.0,0.48292236]
[1729236207539,0.000828,68160.0,68159.0,0.66397654]
[1729236207771,0.000828,68160.0,68159.0,0.67604321]
[1729236209700,0.000828,68160.0,68159.0,0.69010941]
[1729236210137,0.000828,68160.0,68159.0,0.71310941]
[1729236210346,0.000828,68160.0,68159.0,0.76878019]
[1729236210567,0.000828,68160.0,68159.0,0.77078019]
[1729236210788,0.000828,68160.0,68159.0,0.78478019]
[1729236211001,0.000828,68162.0,68161.0,0.184711]
[1729236211218,0.000828,68162.0,68161.0,0.36783138]
[1729236211432,0.000828,68162.0,68161.0,0.37987146]
[1729236211877,0.000828,68162.0,68161.0,0.42555312]
[1729236212614,0.000828,68162.0,68161.0,0.43955312]
[1729236212847,0.000828,68162.0,68161.0,0.43755312]
[1729236213265,0.000828,68162.0,68161.0,0.43955312]
[1729236213481,0.000828,68162.0,68161.0,0.40539189]
[1729236213745,0.000828,68162.0,68161.0,0.43756034]
[1729236213943,0.000828,68162.0,68161.0,0.36887868]
[1729236214618,0.000828,68162.0,68161.0,0.42860875]
[1729236215330,0.000828,68162.0,68161.0,0.45160875]
[1729236216745,0.000828,68162.0,68161.0,0.51030975]
[1729236216986,0.000828,68187.0,68186.0,0.146657]
[1729236217285,0.000828,68187.0,68186.0,0.03216845]
[1729236217507,0.000828,68187.0,68186.0,0.04394294]
[1729236218193,0.000828,68187.0,68186.0,0.19059994]
[1729236218398,0.000828,68187.0,68186.0,0.19959994]
[1729236218635,0.000828,68187.0,68186.0,0.19059994]
[1729236218862,0.000828,68187.0,68186.0,0.33955909]
[1729236219097,0.000828,68187.0,68186.0,0.36355909]
[1729236219322,0.000828,68187.0,68186.0,0.35055909]
[1729236219803,0.000828,68187.0,68186.0,0.36455909]
[1729236220530,0.000828,68187.0,68186.0,0.35355909]
[1729236220749,0.000828,68187.0,68186.0,0.36755909]
[1729236221405,0.000828,68187.0,68186.0,0.35351557]
[1729236221654,0.000828,68187.0,68186.0,0.36751557]
[1729236222271,0.000828,68187.0,68186.0,0.33951557]
[1729236222496,0.000828,68187.0,68186.0,0.36751557]
[1729236222497,0.000868,68187.0,68186.0,0.36751557]
[1729236222736,0.000868,68187.0,68186.0,0.35351557]
[1729236223185,0.000868,68187.0,68186.0,0.36751557]
[1729236223404,0.000868,68187.0,68186.0,0.35351557]
[1729236223885,0.000868,68187.0,68186.0,0.36751557]
[1729236224526,0.000868,68187.0,68186.0,0.33376569]
[1729236224744,0.000868,68187.0,68186.0,0.34776569]
[1729236225223,0.000868,68187.0,68186.0,0.31976569]
[1729236225655,0.000868,68187.0,68186.0,0.34776569]